{"text_format":"3","workbook":"xlsx","n_sheets":5,"sheets":["Foglio1","Sintesi budget","Riepilogo budget","Spese mensili","Dati aggiuntivi"],"not_rendered":{"charts":1,"defined_names":7,"pivot_tables":2},"read":"whole","date_system":"1900"}

{"sheet":"Foglio1","index":0,"n_rows":12,"n_cols":3,"rows_kept":12,"hidden":true}
["Campo calcolato"]
["Ordine di valutazione","Campo","Formula"]
[]
["Elemento calcolato"]
["Ordine di valutazione","Elemento","Formula"]
[]
[]
["Nota:","Quando una cella viene aggiornata da più formule,"]
[null,"il valore viene impostato dalla formula con l'ultimo ordine di valutazione."]
[]
[null,"Per modificare l'ordine di valutazione per più elementi o campi calcolati,"]
[null,"nel gruppo Calcoli della scheda Opzioni fare clic su Campi, elementi e set, quindi su Ordine di valutazione."]

{"sheet":"Sintesi budget","index":1,"n_rows":16,"n_cols":8,"rows_kept":16,"merged":[[0,1,0,6],[1,1,1,2],[3,1,3,2],[4,1,4,2],[5,1,5,2]]}
[null,"SINTESI BUDGET",{"$nulls":5}," "]
[null,"Saldo"]
[]
[null,"Saldo previsto",null,{"$f":"Entrate_Previste-Spese_Previste","v":{"v":1585,"d":"€ 1,585"}},null,"Previste meno uscite"]
[null,"Saldo effettivo ",null,{"$f":"Entrate_Effettive-Spese_Effettive","v":{"v":1740,"d":"€ 1,740"}},null,"Effettive meno uscite"]
[null,"Differenza",null,{"$f":"D5-D4","v":{"v":155,"d":"€ 155"}},null,"Effettive meno previste"]
[]
[null,"Entrate",{"$nulls":3},"Uscite"]
[]
[null,null,"Previste","Effettive",null,"Previste","Effettive"]
[null,"Entrata 1",{"v":6000,"d":"€ 6,000"},{"v":5800,"d":"€ 5,800"},null,{"$f":"SUM(Tabella_Spese_Mensili[Costo previsto])","v":{"v":7915,"d":"€ 7,915"}},{"$f":"SUM(Tabella_Spese_Mensili[Costo effettivo])","v":{"v":7860,"d":"€ 7,860"}}]
[null,"Entrata 2",{"v":1000,"d":"€ 1,000"},{"v":2300,"d":"€ 2,300"}]
[null,"Entrate extra",{"v":2500,"d":"€ 2,500"},{"v":1500,"d":"€ 1,500"}]
[null,"Totale entrate",{"$f":"SUM(C11:C13)","v":{"v":9500,"d":"€ 9,500"}},{"$f":"SUM(D11:D13)","v":{"v":9600,"d":"€ 9,600"}}]
[]
[null,"Suddivisione spese effettive"]

{"sheet":"Riepilogo budget","index":2,"n_rows":45,"n_cols":7,"rows_kept":45,"merged":[[0,1,0,4]]}
[null,"RIEPILOGO BUDGET",{"$nulls":4}," "]
[]
[null,"Categories","Costo previsto ","Costo effettivo ","Differenza "]
[null,"Figli",{"v":140,"d":"€ 140"},{"v":140,"d":"€ 140"},{"v":0,"d":"€ 0"}]
[null,"Attività extrascolastiche",{"v":40,"d":"€ 40"},{"v":40,"d":"€ 40"},{"v":0,"d":"€ 0"}]
[null,"Assistenza medica",null,null,{"v":0,"d":"€ 0"}]
[null,"Materiale scolastico",null,null,{"v":0,"d":"€ 0"}]
[null,"Retta scolastica",{"v":100,"d":"€ 100"},{"v":100,"d":"€ 100"},{"v":0,"d":"€ 0"}]
[]
[null,"Tempo libero",{"v":400,"d":"€ 400"},{"v":358,"d":"€ 358"},{"v":42,"d":"€ 42"}]
[null,"Concerti",{"v":50,"d":"€ 50"},{"v":40,"d":"€ 40"},{"v":10,"d":"€ 10"}]
[null,"Eventi sportivi",{"v":0,"d":"€ 0"},{"v":40,"d":"€ 40"},{"v":-40,"d":"-€ 40"}]
[null,"Film",{"v":50,"d":"€ 50"},{"v":28,"d":"€ 28"},{"v":22,"d":"€ 22"}]
[null,"Musica (CD, download e così via)",{"v":50,"d":"€ 50"},{"v":30,"d":"€ 30"},{"v":20,"d":"€ 20"}]
[null,"Teatro",{"v":200,"d":"€ 200"},{"v":150,"d":"€ 150"},{"v":50,"d":"€ 50"}]
[null,"Video/DVD (acquisto)",{"v":20,"d":"€ 20"},{"v":50,"d":"€ 50"},{"v":-30,"d":"-€ 30"}]
[null,"Video/DVD (noleggio)",{"v":30,"d":"€ 30"},{"v":20,"d":"€ 20"},{"v":10,"d":"€ 10"}]
[]
[null,"Alimenti",{"v":1100,"d":"€ 1,100"},{"v":1320,"d":"€ 1,320"},{"v":-220,"d":"-€ 220"}]
[]
[null,"Regali e beneficenza",{"v":100,"d":"€ 100"},{"v":125,"d":"€ 125"},{"v":-25,"d":"-€ 25"}]
[null,"Beneficenza 1",{"v":75,"d":"€ 75"},{"v":100,"d":"€ 100"},{"v":-25,"d":"-€ 25"}]
[null,"Beneficenza 2",{"v":25,"d":"€ 25"},{"v":25,"d":"€ 25"},{"v":0,"d":"€ 0"}]
[null,"Regalo 1",null,null,{"v":0,"d":"€ 0"}]
[null,"Regalo 2",null,null,{"v":0,"d":"€ 0"}]
[]
[null,"Alloggio",{"v":2830,"d":"€ 2,830"},{"v":2702,"d":"€ 2,702"},{"v":-72,"d":"-€ 72"}]
[]
[null,"Assicurazione",{"v":900,"d":"€ 900"},{"v":900,"d":"€ 900"},{"v":0,"d":"€ 0"}]
[]
[null,"Prestiti",{"v":200,"d":"€ 200"},{"v":200,"d":"€ 200"},{"v":0,"d":"€ 0"}]
[]
[null,"Igiene personale",{"v":150,"d":"€ 150"},{"v":140,"d":"€ 140"},{"v":10,"d":"€ 10"}]
[]
[null,"Animali domestici",{"v":170,"d":"€ 170"},{"v":100,"d":"€ 100"},{"v":70,"d":"€ 70"}]
[]
[null,"Imposte",{"v":300,"d":"€ 300"},{"v":300,"d":"€ 300"},{"v":0,"d":"€ 0"}]
[]
[null,"Trasporti",{"v":1425,"d":"€ 1,425"},{"v":1375,"d":"€ 1,375"},{"v":50,"d":"€ 50"}]
[]
[null,"Risparmi",{"v":200,"d":"€ 200"},{"v":200,"d":"€ 200"},{"v":0,"d":"€ 0"}]
[null,"Conto investimento",{"v":200,"d":"€ 200"},{"v":200,"d":"€ 200"},{"v":0,"d":"€ 0"}]
[null,"Fondo pensione",null,null,{"v":0,"d":"€ 0"}]
[]
[null,"Grand Total",{"v":7915,"d":"€ 7,915"},{"v":7860,"d":"€ 7,860"},{"v":-145,"d":"-€ 145"}]

{"sheet":"Spese mensili","index":3,"n_rows":61,"n_cols":8,"rows_kept":61}
[null,"SPESE MENSILI",{"$nulls":5}," "]
[null,"Descrizione","Categoria","Costo previsto","Costo effettivo","Differenza","Panoramica costi effettivi"]
[null,"Attività extrascolastiche","Figli",{"v":40,"d":"€ 40"},{"v":40,"d":"€ 40"},{"$f":"IF(OR(Tabella_Spese_Mensili[[#This Row],[Costo previsto]]=\"\",Tabella_Spese_Mensili[[#This Row],[Costo effettivo]]=\"\"),\"\",Tabella_Spese_Mensili[[#This Row],[Costo previsto]]-Tabella_Spese_Mensili[[#This Row],[Costo effettivo]])","v":{"v":0,"d":"€ 0"}},{"$f":"Tabella_Spese_Mensili[[#This Row],[Costo effettivo]]","v":40}]
[null,"Assistenza medica","Figli",null,null,{"$f":"IF(OR(Tabella_Spese_Mensili[[#This Row],[Costo previsto]]=\"\",Tabella_Spese_Mensili[[#This Row],[Costo effettivo]]=\"\"),\"\",Tabella_Spese_Mensili[[#This Row],[Costo previsto]]-Tabella_Spese_Mensili[[#This Row],[Costo effettivo]])","v":""},{"$f":"Tabella_Spese_Mensili[[#This Row],[Costo effettivo]]","v":0}]
[null,"Materiale scolastico","Figli",null,null,{"$f":"IF(OR(Tabella_Spese_Mensili[[#This Row],[Costo previsto]]=\"\",Tabella_Spese_Mensili[[#This Row],[Costo effettivo]]=\"\"),\"\",Tabella_Spese_Mensili[[#This Row],[Costo previsto]]-Tabella_Spese_Mensili[[#This Row],[Costo effettivo]])","v":""},{"$f":"Tabella_Spese_Mensili[[#This Row],[Costo effettivo]]","v":0}]
[null,"Retta scolastica","Figli",{"v":100,"d":"€ 100"},{"v":100,"d":"€ 100"},{"$f":"IF(OR(Tabella_Spese_Mensili[[#This Row],[Costo previsto]]=\"\",Tabella_Spese_Mensili[[#This Row],[Costo effettivo]]=\"\"),\"\",Tabella_Spese_Mensili[[#This Row],[Costo previsto]]-Tabella_Spese_Mensili[[#This Row],[Costo effettivo]])","v":{"v":0,"d":"€ 0"}},{"$f":"Tabella_Spese_Mensili[[#This Row],[Costo effettivo]]","v":100}]
[null,"Concerti","Tempo libero",{"v":50,"d":"€ 50"},{"v":40,"d":"€ 40"},{"$f":"IF(OR(Tabella_Spese_Mensili[[#This Row],[Costo previsto]]=\"\",Tabella_Spese_Mensili[[#This Row],[Costo effettivo]]=\"\"),\"\",Tabella_Spese_Mensili[[#This Row],[Costo previsto]]-Tabella_Spese_Mensili[[#This Row],[Costo effettivo]])","v":{"v":10,"d":"€ 10"}},{"$f":"Tabella_Spese_Mensili[[#This Row],[Costo effettivo]]","v":40}]
[null,"Teatro","Tempo libero",{"v":200,"d":"€ 200"},{"v":150,"d":"€ 150"},{"$f":"IF(OR(Tabella_Spese_Mensili[[#This Row],[Costo previsto]]=\"\",Tabella_Spese_Mensili[[#This Row],[Costo effettivo]]=\"\"),\"\",Tabella_Spese_Mensili[[#This Row],[Costo previsto]]-Tabella_Spese_Mensili[[#This Row],[Costo effettivo]])","v":{"v":50,"d":"€ 50"}},{"$f":"Tabella_Spese_Mensili[[#This Row],[Costo effettivo]]","v":150}]
[null,"Film","Tempo libero",{"v":50,"d":"€ 50"},{"v":28,"d":"€ 28"},{"$f":"IF(OR(Tabella_Spese_Mensili[[#This Row],[Costo previsto]]=\"\",Tabella_Spese_Mensili[[#This Row],[Costo effettivo]]=\"\"),\"\",Tabella_Spese_Mensili[[#This Row],[Costo previsto]]-Tabella_Spese_Mensili[[#This Row],[Costo effettivo]])","v":{"v":22,"d":"€ 22"}},{"$f":"Tabella_Spese_Mensili[[#This Row],[Costo effettivo]]","v":28}]
[null,"Musica (CD, download e così via)","Tempo libero",{"v":50,"d":"€ 50"},{"v":30,"d":"€ 30"},{"$f":"IF(OR(Tabella_Spese_Mensili[[#This Row],[Costo previsto]]=\"\",Tabella_Spese_Mensili[[#This Row],[Costo effettivo]]=\"\"),\"\",Tabella_Spese_Mensili[[#This Row],[Costo previsto]]-Tabella_Spese_Mensili[[#This Row],[Costo effettivo]])","v":{"v":20,"d":"€ 20"}},{"$f":"Tabella_Spese_Mensili[[#This Row],[Costo effettivo]]","v":30}]
[null,"Eventi sportivi","Tempo libero",{"v":0,"d":"€ 0"},{"v":40,"d":"€ 40"},{"$f":"IF(OR(Tabella_Spese_Mensili[[#This Row],[Costo previsto]]=\"\",Tabella_Spese_Mensili[[#This Row],[Costo effettivo]]=\"\"),\"\",Tabella_Spese_Mensili[[#This Row],[Costo previsto]]-Tabella_Spese_Mensili[[#This Row],[Costo effettivo]])","v":{"v":-40,"d":"-€ 40"}},{"$f":"Tabella_Spese_Mensili[[#This Row],[Costo effettivo]]","v":40}]
[null,"Video/DVD (acquisto)","Tempo libero",{"v":20,"d":"€ 20"},{"v":50,"d":"€ 50"},{"$f":"IF(OR(Tabella_Spese_Mensili[[#This Row],[Costo previsto]]=\"\",Tabella_Spese_Mensili[[#This Row],[Costo effettivo]]=\"\"),\"\",Tabella_Spese_Mensili[[#This Row],[Costo previsto]]-Tabella_Spese_Mensili[[#This Row],[Costo effettivo]])","v":{"v":-30,"d":"-€ 30"}},{"$f":"Tabella_Spese_Mensili[[#This Row],[Costo effettivo]]","v":50}]
[null,"Video/DVD (noleggio)","Tempo libero",{"v":30,"d":"€ 30"},{"v":20,"d":"€ 20"},{"$f":"IF(OR(Tabella_Spese_Mensili[[#This Row],[Costo previsto]]=\"\",Tabella_Spese_Mensili[[#This Row],[Costo effettivo]]=\"\"),\"\",Tabella_Spese_Mensili[[#This Row],[Costo previsto]]-Tabella_Spese_Mensili[[#This Row],[Costo effettivo]])","v":{"v":10,"d":"€ 10"}},{"$f":"Tabella_Spese_Mensili[[#This Row],[Costo effettivo]]","v":20}]
[null,"Cene fuori","Alimenti",{"v":1000,"d":"€ 1,000"},{"v":1200,"d":"€ 1,200"},{"$f":"IF(OR(Tabella_Spese_Mensili[[#This Row],[Costo previsto]]=\"\",Tabella_Spese_Mensili[[#This Row],[Costo effettivo]]=\"\"),\"\",Tabella_Spese_Mensili[[#This Row],[Costo previsto]]-Tabella_Spese_Mensili[[#This Row],[Costo effettivo]])","v":{"v":-200,"d":"-€ 200"}},{"$f":"Tabella_Spese_Mensili[[#This Row],[Costo effettivo]]","v":1200}]
[null,"Generi alimentari","Alimenti",{"v":100,"d":"€ 100"},{"v":120,"d":"€ 120"},{"$f":"IF(OR(Tabella_Spese_Mensili[[#This Row],[Costo previsto]]=\"\",Tabella_Spese_Mensili[[#This Row],[Costo effettivo]]=\"\"),\"\",Tabella_Spese_Mensili[[#This Row],[Costo previsto]]-Tabella_Spese_Mensili[[#This Row],[Costo effettivo]])","v":{"v":-20,"d":"-€ 20"}},{"$f":"Tabella_Spese_Mensili[[#This Row],[Costo effettivo]]","v":120}]
[null,"Beneficenza 1","Regali e beneficenza",{"v":75,"d":"€ 75"},{"v":100,"d":"€ 100"},{"$f":"IF(OR(Tabella_Spese_Mensili[[#This Row],[Costo previsto]]=\"\",Tabella_Spese_Mensili[[#This Row],[Costo effettivo]]=\"\"),\"\",Tabella_Spese_Mensili[[#This Row],[Costo previsto]]-Tabella_Spese_Mensili[[#This Row],[Costo effettivo]])","v":{"v":-25,"d":"-€ 25"}},{"$f":"Tabella_Spese_Mensili[[#This Row],[Costo effettivo]]","v":100}]
[null,"Beneficenza 2","Regali e beneficenza",{"v":25,"d":"€ 25"},{"v":25,"d":"€ 25"},{"$f":"IF(OR(Tabella_Spese_Mensili[[#This Row],[Costo previsto]]=\"\",Tabella_Spese_Mensili[[#This Row],[Costo effettivo]]=\"\"),\"\",Tabella_Spese_Mensili[[#This Row],[Costo previsto]]-Tabella_Spese_Mensili[[#This Row],[Costo effettivo]])","v":{"v":0,"d":"€ 0"}},{"$f":"Tabella_Spese_Mensili[[#This Row],[Costo effettivo]]","v":25}]
[null,"Regalo 1","Regali e beneficenza",null,null,{"$f":"IF(OR(Tabella_Spese_Mensili[[#This Row],[Costo previsto]]=\"\",Tabella_Spese_Mensili[[#This Row],[Costo effettivo]]=\"\"),\"\",Tabella_Spese_Mensili[[#This Row],[Costo previsto]]-Tabella_Spese_Mensili[[#This Row],[Costo effettivo]])","v":""},{"$f":"Tabella_Spese_Mensili[[#This Row],[Costo effettivo]]","v":0}]
[null,"Regalo 2","Regali e beneficenza",null,null,{"$f":"IF(OR(Tabella_Spese_Mensili[[#This Row],[Costo previsto]]=\"\",Tabella_Spese_Mensili[[#This Row],[Costo effettivo]]=\"\"),\"\",Tabella_Spese_Mensili[[#This Row],[Costo previsto]]-Tabella_Spese_Mensili[[#This Row],[Costo effettivo]])","v":""},{"$f":"Tabella_Spese_Mensili[[#This Row],[Costo effettivo]]","v":0}]
[null,"TV via cavo/satellitare","Alloggio",{"v":100,"d":"€ 100"},{"v":100,"d":"€ 100"},{"$f":"IF(OR(Tabella_Spese_Mensili[[#This Row],[Costo previsto]]=\"\",Tabella_Spese_Mensili[[#This Row],[Costo effettivo]]=\"\"),\"\",Tabella_Spese_Mensili[[#This Row],[Costo previsto]]-Tabella_Spese_Mensili[[#This Row],[Costo effettivo]])","v":{"v":0,"d":"€ 0"}},{"$f":"Tabella_Spese_Mensili[[#This Row],[Costo effettivo]]","v":100}]
[null,"Elettricità","Alloggio",{"v":45,"d":"€ 45"},{"v":50,"d":"€ 50"},{"$f":"IF(OR(Tabella_Spese_Mensili[[#This Row],[Costo previsto]]=\"\",Tabella_Spese_Mensili[[#This Row],[Costo effettivo]]=\"\"),\"\",Tabella_Spese_Mensili[[#This Row],[Costo previsto]]-Tabella_Spese_Mensili[[#This Row],[Costo effettivo]])","v":{"v":-5,"d":"-€ 5"}},{"$f":"Tabella_Spese_Mensili[[#This Row],[Costo effettivo]]","v":50}]
[null,"Gas","Alloggio",{"v":300,"d":"€ 300"},{"v":400,"d":"€ 400"},{"$f":"IF(OR(Tabella_Spese_Mensili[[#This Row],[Costo previsto]]=\"\",Tabella_Spese_Mensili[[#This Row],[Costo effettivo]]=\"\"),\"\",Tabella_Spese_Mensili[[#This Row],[Costo previsto]]-Tabella_Spese_Mensili[[#This Row],[Costo effettivo]])","v":{"v":-100,"d":"-€ 100"}},{"$f":"Tabella_Spese_Mensili[[#This Row],[Costo effettivo]]","v":400}]
[null,"Servizio di pulizia della casa","Alloggio",{"v":200,"d":"€ 200"},null,{"$f":"IF(OR(Tabella_Spese_Mensili[[#This Row],[Costo previsto]]=\"\",Tabella_Spese_Mensili[[#This Row],[Costo effettivo]]=\"\"),\"\",Tabella_Spese_Mensili[[#This Row],[Costo previsto]]-Tabella_Spese_Mensili[[#This Row],[Costo effettivo]])","v":""},{"$f":"Tabella_Spese_Mensili[[#This Row],[Costo effettivo]]","v":0}]
[null,"Manutenzione","Alloggio",{"v":200,"d":"€ 200"},{"v":150,"d":"€ 150"},{"$f":"IF(OR(Tabella_Spese_Mensili[[#This Row],[Costo previsto]]=\"\",Tabella_Spese_Mensili[[#This Row],[Costo effettivo]]=\"\"),\"\",Tabella_Spese_Mensili[[#This Row],[Costo previsto]]-Tabella_Spese_Mensili[[#This Row],[Costo effettivo]])","v":{"v":50,"d":"€ 50"}},{"$f":"Tabella_Spese_Mensili[[#This Row],[Costo effettivo]]","v":150}]
[null,"Mutuo o affitto","Alloggio",{"v":1700,"d":"€ 1,700"},{"v":1700,"d":"€ 1,700"},{"$f":"IF(OR(Tabella_Spese_Mensili[[#This Row],[Costo previsto]]=\"\",Tabella_Spese_Mensili[[#This Row],[Costo effettivo]]=\"\"),\"\",Tabella_Spese_Mensili[[#This Row],[Costo previsto]]-Tabella_Spese_Mensili[[#This Row],[Costo effettivo]])","v":{"v":0,"d":"€ 0"}},{"$f":"Tabella_Spese_Mensili[[#This Row],[Costo effettivo]]","v":1700}]
[null,"Riscaldamento","Alloggio",null,null,{"$f":"IF(OR(Tabella_Spese_Mensili[[#This Row],[Costo previsto]]=\"\",Tabella_Spese_Mensili[[#This Row],[Costo effettivo]]=\"\"),\"\",Tabella_Spese_Mensili[[#This Row],[Costo previsto]]-Tabella_Spese_Mensili[[#This Row],[Costo effettivo]])","v":""},{"$f":"Tabella_Spese_Mensili[[#This Row],[Costo effettivo]]","v":0}]
[null,"Servizio Internet","Alloggio",{"v":100,"d":"€ 100"},{"v":100,"d":"€ 100"},{"$f":"IF(OR(Tabella_Spese_Mensili[[#This Row],[Costo previsto]]=\"\",Tabella_Spese_Mensili[[#This Row],[Costo effettivo]]=\"\"),\"\",Tabella_Spese_Mensili[[#This Row],[Costo previsto]]-Tabella_Spese_Mensili[[#This Row],[Costo effettivo]])","v":{"v":0,"d":"€ 0"}},{"$f":"Tabella_Spese_Mensili[[#This Row],[Costo effettivo]]","v":100}]
[null,"Cellulare","Alloggio",{"v":60,"d":"€ 60"},{"v":60,"d":"€ 60"},{"$f":"IF(OR(Tabella_Spese_Mensili[[#This Row],[Costo previsto]]=\"\",Tabella_Spese_Mensili[[#This Row],[Costo effettivo]]=\"\"),\"\",Tabella_Spese_Mensili[[#This Row],[Costo previsto]]-Tabella_Spese_Mensili[[#This Row],[Costo effettivo]])","v":{"v":0,"d":"€ 0"}},{"$f":"Tabella_Spese_Mensili[[#This Row],[Costo effettivo]]","v":60}]
[null,"Telefono abitazione","Alloggio",{"v":35,"d":"€ 35"},{"v":39,"d":"€ 39"},{"$f":"IF(OR(Tabella_Spese_Mensili[[#This Row],[Costo previsto]]=\"\",Tabella_Spese_Mensili[[#This Row],[Costo effettivo]]=\"\"),\"\",Tabella_Spese_Mensili[[#This Row],[Costo previsto]]-Tabella_Spese_Mensili[[#This Row],[Costo effettivo]])","v":{"v":-4,"d":"-€ 4"}},{"$f":"Tabella_Spese_Mensili[[#This Row],[Costo effettivo]]","v":39}]
[null,"Materiali","Alloggio",{"v":40,"d":"€ 40"},{"v":55,"d":"€ 55"},{"$f":"IF(OR(Tabella_Spese_Mensili[[#This Row],[Costo previsto]]=\"\",Tabella_Spese_Mensili[[#This Row],[Costo effettivo]]=\"\"),\"\",Tabella_Spese_Mensili[[#This Row],[Costo previsto]]-Tabella_Spese_Mensili[[#This Row],[Costo effettivo]])","v":{"v":-15,"d":"-€ 15"}},{"$f":"Tabella_Spese_Mensili[[#This Row],[Costo effettivo]]","v":55}]
[null,"Rimozione rifiuti","Alloggio",{"v":25,"d":"€ 25"},{"v":22,"d":"€ 22"},{"$f":"IF(OR(Tabella_Spese_Mensili[[#This Row],[Costo previsto]]=\"\",Tabella_Spese_Mensili[[#This Row],[Costo effettivo]]=\"\"),\"\",Tabella_Spese_Mensili[[#This Row],[Costo previsto]]-Tabella_Spese_Mensili[[#This Row],[Costo effettivo]])","v":{"v":3,"d":"€ 3"}},{"$f":"Tabella_Spese_Mensili[[#This Row],[Costo effettivo]]","v":22}]
[null,"Acqua","Alloggio",{"v":25,"d":"€ 25"},{"v":26,"d":"€ 26"},{"$f":"IF(OR(Tabella_Spese_Mensili[[#This Row],[Costo previsto]]=\"\",Tabella_Spese_Mensili[[#This Row],[Costo effettivo]]=\"\"),\"\",Tabella_Spese_Mensili[[#This Row],[Costo previsto]]-Tabella_Spese_Mensili[[#This Row],[Costo effettivo]])","v":{"v":-1,"d":"-€ 1"}},{"$f":"Tabella_Spese_Mensili[[#This Row],[Costo effettivo]]","v":26}]
[null,"Salute","Assicurazione",{"v":400,"d":"€ 400"},{"v":400,"d":"€ 400"},{"$f":"IF(OR(Tabella_Spese_Mensili[[#This Row],[Costo previsto]]=\"\",Tabella_Spese_Mensili[[#This Row],[Costo effettivo]]=\"\"),\"\",Tabella_Spese_Mensili[[#This Row],[Costo previsto]]-Tabella_Spese_Mensili[[#This Row],[Costo effettivo]])","v":{"v":0,"d":"€ 0"}},{"$f":"Tabella_Spese_Mensili[[#This Row],[Costo effettivo]]","v":400}]
[null,"Casa","Assicurazione",{"v":400,"d":"€ 400"},{"v":400,"d":"€ 400"},{"$f":"IF(OR(Tabella_Spese_Mensili[[#This Row],[Costo previsto]]=\"\",Tabella_Spese_Mensili[[#This Row],[Costo effettivo]]=\"\"),\"\",Tabella_Spese_Mensili[[#This Row],[Costo previsto]]-Tabella_Spese_Mensili[[#This Row],[Costo effettivo]])","v":{"v":0,"d":"€ 0"}},{"$f":"Tabella_Spese_Mensili[[#This Row],[Costo effettivo]]","v":400}]
[null,"Vita","Assicurazione",{"v":100,"d":"€ 100"},{"v":100,"d":"€ 100"},{"$f":"IF(OR(Tabella_Spese_Mensili[[#This Row],[Costo previsto]]=\"\",Tabella_Spese_Mensili[[#This Row],[Costo effettivo]]=\"\"),\"\",Tabella_Spese_Mensili[[#This Row],[Costo previsto]]-Tabella_Spese_Mensili[[#This Row],[Costo effettivo]])","v":{"v":0,"d":"€ 0"}},{"$f":"Tabella_Spese_Mensili[[#This Row],[Costo effettivo]]","v":100}]
[null,"Carta di credito 1","Prestiti",{"v":200,"d":"€ 200"},{"v":200,"d":"€ 200"},{"$f":"IF(OR(Tabella_Spese_Mensili[[#This Row],[Costo previsto]]=\"\",Tabella_Spese_Mensili[[#This Row],[Costo effettivo]]=\"\"),\"\",Tabella_Spese_Mensili[[#This Row],[Costo previsto]]-Tabella_Spese_Mensili[[#This Row],[Costo effettivo]])","v":{"v":0,"d":"€ 0"}},{"$f":"Tabella_Spese_Mensili[[#This Row],[Costo effettivo]]","v":200}]
[null,"Carta di credito 2","Prestiti",null,null,{"$f":"IF(OR(Tabella_Spese_Mensili[[#This Row],[Costo previsto]]=\"\",Tabella_Spese_Mensili[[#This Row],[Costo effettivo]]=\"\"),\"\",Tabella_Spese_Mensili[[#This Row],[Costo previsto]]-Tabella_Spese_Mensili[[#This Row],[Costo effettivo]])","v":""},{"$f":"Tabella_Spese_Mensili[[#This Row],[Costo effettivo]]","v":0}]
[null,"Carta di credito 3","Prestiti",null,null,{"$f":"IF(OR(Tabella_Spese_Mensili[[#This Row],[Costo previsto]]=\"\",Tabella_Spese_Mensili[[#This Row],[Costo effettivo]]=\"\"),\"\",Tabella_Spese_Mensili[[#This Row],[Costo previsto]]-Tabella_Spese_Mensili[[#This Row],[Costo effettivo]])","v":""},{"$f":"Tabella_Spese_Mensili[[#This Row],[Costo effettivo]]","v":0}]
[null,"Personale","Prestiti",null,null,{"$f":"IF(OR(Tabella_Spese_Mensili[[#This Row],[Costo previsto]]=\"\",Tabella_Spese_Mensili[[#This Row],[Costo effettivo]]=\"\"),\"\",Tabella_Spese_Mensili[[#This Row],[Costo previsto]]-Tabella_Spese_Mensili[[#This Row],[Costo effettivo]])","v":""},{"$f":"Tabella_Spese_Mensili[[#This Row],[Costo effettivo]]","v":0}]
[null,"Studente","Prestiti",null,null,{"$f":"IF(OR(Tabella_Spese_Mensili[[#This Row],[Costo previsto]]=\"\",Tabella_Spese_Mensili[[#This Row],[Costo effettivo]]=\"\"),\"\",Tabella_Spese_Mensili[[#This Row],[Costo previsto]]-Tabella_Spese_Mensili[[#This Row],[Costo effettivo]])","v":""},{"$f":"Tabella_Spese_Mensili[[#This Row],[Costo effettivo]]","v":0}]
[null,"Abbigliamento","Igiene personale",{"v":150,"d":"€ 150"},{"v":140,"d":"€ 140"},{"$f":"IF(OR(Tabella_Spese_Mensili[[#This Row],[Costo previsto]]=\"\",Tabella_Spese_Mensili[[#This Row],[Costo effettivo]]=\"\"),\"\",Tabella_Spese_Mensili[[#This Row],[Costo previsto]]-Tabella_Spese_Mensili[[#This Row],[Costo effettivo]])","v":{"v":10,"d":"€ 10"}},{"$f":"Tabella_Spese_Mensili[[#This Row],[Costo effettivo]]","v":140}]
[null,"Lavanderia","Igiene personale",null,null,{"$f":"IF(OR(Tabella_Spese_Mensili[[#This Row],[Costo previsto]]=\"\",Tabella_Spese_Mensili[[#This Row],[Costo effettivo]]=\"\"),\"\",Tabella_Spese_Mensili[[#This Row],[Costo previsto]]-Tabella_Spese_Mensili[[#This Row],[Costo effettivo]])","v":""},{"$f":"Tabella_Spese_Mensili[[#This Row],[Costo effettivo]]","v":0}]
[null,"Parrucchiere/manicure","Igiene personale",null,null,{"$f":"IF(OR(Tabella_Spese_Mensili[[#This Row],[Costo previsto]]=\"\",Tabella_Spese_Mensili[[#This Row],[Costo effettivo]]=\"\"),\"\",Tabella_Spese_Mensili[[#This Row],[Costo previsto]]-Tabella_Spese_Mensili[[#This Row],[Costo effettivo]])","v":""},{"$f":"Tabella_Spese_Mensili[[#This Row],[Costo effettivo]]","v":0}]
[null,"Palestra","Igiene personale",null,null,{"$f":"IF(OR(Tabella_Spese_Mensili[[#This Row],[Costo previsto]]=\"\",Tabella_Spese_Mensili[[#This Row],[Costo effettivo]]=\"\"),\"\",Tabella_Spese_Mensili[[#This Row],[Costo previsto]]-Tabella_Spese_Mensili[[#This Row],[Costo effettivo]])","v":""},{"$f":"Tabella_Spese_Mensili[[#This Row],[Costo effettivo]]","v":0}]
[null,"Assistenza medica","Igiene personale",null,null,{"$f":"IF(OR(Tabella_Spese_Mensili[[#This Row],[Costo previsto]]=\"\",Tabella_Spese_Mensili[[#This Row],[Costo effettivo]]=\"\"),\"\",Tabella_Spese_Mensili[[#This Row],[Costo previsto]]-Tabella_Spese_Mensili[[#This Row],[Costo effettivo]])","v":""},{"$f":"Tabella_Spese_Mensili[[#This Row],[Costo effettivo]]","v":0}]
[null,"Alimentari","Animali domestici",{"v":150,"d":"€ 150"},{"v":75,"d":"€ 75"},{"$f":"IF(OR(Tabella_Spese_Mensili[[#This Row],[Costo previsto]]=\"\",Tabella_Spese_Mensili[[#This Row],[Costo effettivo]]=\"\"),\"\",Tabella_Spese_Mensili[[#This Row],[Costo previsto]]-Tabella_Spese_Mensili[[#This Row],[Costo effettivo]])","v":{"v":75,"d":"€ 75"}},{"$f":"Tabella_Spese_Mensili[[#This Row],[Costo effettivo]]","v":75}]
[null,"Toelettatura","Animali domestici",{"v":20,"d":"€ 20"},{"v":25,"d":"€ 25"},{"$f":"IF(OR(Tabella_Spese_Mensili[[#This Row],[Costo previsto]]=\"\",Tabella_Spese_Mensili[[#This Row],[Costo effettivo]]=\"\"),\"\",Tabella_Spese_Mensili[[#This Row],[Costo previsto]]-Tabella_Spese_Mensili[[#This Row],[Costo effettivo]])","v":{"v":-5,"d":"-€ 5"}},{"$f":"Tabella_Spese_Mensili[[#This Row],[Costo effettivo]]","v":25}]
[null,"Veterinario","Animali domestici",null,null,{"$f":"IF(OR(Tabella_Spese_Mensili[[#This Row],[Costo previsto]]=\"\",Tabella_Spese_Mensili[[#This Row],[Costo effettivo]]=\"\"),\"\",Tabella_Spese_Mensili[[#This Row],[Costo previsto]]-Tabella_Spese_Mensili[[#This Row],[Costo effettivo]])","v":""},{"$f":"Tabella_Spese_Mensili[[#This Row],[Costo effettivo]]","v":0}]
[null,"Giocattoli","Animali domestici",null,null,{"$f":"IF(OR(Tabella_Spese_Mensili[[#This Row],[Costo previsto]]=\"\",Tabella_Spese_Mensili[[#This Row],[Costo effettivo]]=\"\"),\"\",Tabella_Spese_Mensili[[#This Row],[Costo previsto]]-Tabella_Spese_Mensili[[#This Row],[Costo effettivo]])","v":""},{"$f":"Tabella_Spese_Mensili[[#This Row],[Costo effettivo]]","v":0}]
[null,"Conto investimento","Risparmi",{"v":200,"d":"€ 200"},{"v":200,"d":"€ 200"},{"$f":"IF(OR(Tabella_Spese_Mensili[[#This Row],[Costo previsto]]=\"\",Tabella_Spese_Mensili[[#This Row],[Costo effettivo]]=\"\"),\"\",Tabella_Spese_Mensili[[#This Row],[Costo previsto]]-Tabella_Spese_Mensili[[#This Row],[Costo effettivo]])","v":{"v":0,"d":"€ 0"}},{"$f":"Tabella_Spese_Mensili[[#This Row],[Costo effettivo]]","v":200}]
[null,"Fondo pensione","Risparmi",null,null,{"$f":"IF(OR(Tabella_Spese_Mensili[[#This Row],[Costo previsto]]=\"\",Tabella_Spese_Mensili[[#This Row],[Costo effettivo]]=\"\"),\"\",Tabella_Spese_Mensili[[#This Row],[Costo previsto]]-Tabella_Spese_Mensili[[#This Row],[Costo effettivo]])","v":""},{"$f":"Tabella_Spese_Mensili[[#This Row],[Costo effettivo]]","v":0}]
[null,"Nazionali","Imposte",{"v":300,"d":"€ 300"},{"v":300,"d":"€ 300"},{"$f":"IF(OR(Tabella_Spese_Mensili[[#This Row],[Costo previsto]]=\"\",Tabella_Spese_Mensili[[#This Row],[Costo effettivo]]=\"\"),\"\",Tabella_Spese_Mensili[[#This Row],[Costo previsto]]-Tabella_Spese_Mensili[[#This Row],[Costo effettivo]])","v":{"v":0,"d":"€ 0"}},{"$f":"Tabella_Spese_Mensili[[#This Row],[Costo effettivo]]","v":300}]
[null,"Locali","Imposte",null,null,{"$f":"IF(OR(Tabella_Spese_Mensili[[#This Row],[Costo previsto]]=\"\",Tabella_Spese_Mensili[[#This Row],[Costo effettivo]]=\"\"),\"\",Tabella_Spese_Mensili[[#This Row],[Costo previsto]]-Tabella_Spese_Mensili[[#This Row],[Costo effettivo]])","v":""},{"$f":"Tabella_Spese_Mensili[[#This Row],[Costo effettivo]]","v":0}]
[null,"Provincia","Imposte",null,null,{"$f":"IF(OR(Tabella_Spese_Mensili[[#This Row],[Costo previsto]]=\"\",Tabella_Spese_Mensili[[#This Row],[Costo effettivo]]=\"\"),\"\",Tabella_Spese_Mensili[[#This Row],[Costo previsto]]-Tabella_Spese_Mensili[[#This Row],[Costo effettivo]])","v":""},{"$f":"Tabella_Spese_Mensili[[#This Row],[Costo effettivo]]","v":0}]
[null,"Bus o passaggi in auto","Trasporti",{"v":100,"d":"€ 100"},{"v":150,"d":"€ 150"},{"$f":"IF(OR(Tabella_Spese_Mensili[[#This Row],[Costo previsto]]=\"\",Tabella_Spese_Mensili[[#This Row],[Costo effettivo]]=\"\"),\"\",Tabella_Spese_Mensili[[#This Row],[Costo previsto]]-Tabella_Spese_Mensili[[#This Row],[Costo effettivo]])","v":{"v":-50,"d":"-€ 50"}},{"$f":"Tabella_Spese_Mensili[[#This Row],[Costo effettivo]]","v":150}]
[null,"Carburante","Trasporti",{"v":450,"d":"€ 450"},{"v":400,"d":"€ 400"},{"$f":"IF(OR(Tabella_Spese_Mensili[[#This Row],[Costo previsto]]=\"\",Tabella_Spese_Mensili[[#This Row],[Costo effettivo]]=\"\"),\"\",Tabella_Spese_Mensili[[#This Row],[Costo previsto]]-Tabella_Spese_Mensili[[#This Row],[Costo effettivo]])","v":{"v":50,"d":"€ 50"}},{"$f":"Tabella_Spese_Mensili[[#This Row],[Costo effettivo]]","v":400}]
[null,"Assicurazione","Trasporti",{"v":300,"d":"€ 300"},{"v":300,"d":"€ 300"},{"$f":"IF(OR(Tabella_Spese_Mensili[[#This Row],[Costo previsto]]=\"\",Tabella_Spese_Mensili[[#This Row],[Costo effettivo]]=\"\"),\"\",Tabella_Spese_Mensili[[#This Row],[Costo previsto]]-Tabella_Spese_Mensili[[#This Row],[Costo effettivo]])","v":{"v":0,"d":"€ 0"}},{"$f":"Tabella_Spese_Mensili[[#This Row],[Costo effettivo]]","v":300}]
[null,"Bollo ","Trasporti",{"v":25,"d":"€ 25"},{"v":25,"d":"€ 25"},{"$f":"IF(OR(Tabella_Spese_Mensili[[#This Row],[Costo previsto]]=\"\",Tabella_Spese_Mensili[[#This Row],[Costo effettivo]]=\"\"),\"\",Tabella_Spese_Mensili[[#This Row],[Costo previsto]]-Tabella_Spese_Mensili[[#This Row],[Costo effettivo]])","v":{"v":0,"d":"€ 0"}},{"$f":"Tabella_Spese_Mensili[[#This Row],[Costo effettivo]]","v":25}]
[null,"Manutenzione","Trasporti",{"v":100,"d":"€ 100"},{"v":50,"d":"€ 50"},{"$f":"IF(OR(Tabella_Spese_Mensili[[#This Row],[Costo previsto]]=\"\",Tabella_Spese_Mensili[[#This Row],[Costo effettivo]]=\"\"),\"\",Tabella_Spese_Mensili[[#This Row],[Costo previsto]]-Tabella_Spese_Mensili[[#This Row],[Costo effettivo]])","v":{"v":50,"d":"€ 50"}},{"$f":"Tabella_Spese_Mensili[[#This Row],[Costo effettivo]]","v":50}]
[null,"Parcheggio","Trasporti",null,null,{"$f":"IF(OR(Tabella_Spese_Mensili[[#This Row],[Costo previsto]]=\"\",Tabella_Spese_Mensili[[#This Row],[Costo effettivo]]=\"\"),\"\",Tabella_Spese_Mensili[[#This Row],[Costo previsto]]-Tabella_Spese_Mensili[[#This Row],[Costo effettivo]])","v":""},{"$f":"Tabella_Spese_Mensili[[#This Row],[Costo effettivo]]","v":0}]
[null,"Rata veicolo","Trasporti",{"v":450,"d":"€ 450"},{"v":450,"d":"€ 450"},{"$f":"IF(OR(Tabella_Spese_Mensili[[#This Row],[Costo previsto]]=\"\",Tabella_Spese_Mensili[[#This Row],[Costo effettivo]]=\"\"),\"\",Tabella_Spese_Mensili[[#This Row],[Costo previsto]]-Tabella_Spese_Mensili[[#This Row],[Costo effettivo]])","v":{"v":0,"d":"€ 0"}},{"$f":"Tabella_Spese_Mensili[[#This Row],[Costo effettivo]]","v":450}]

{"sheet":"Dati aggiuntivi","index":4,"n_rows":17,"n_cols":9,"rows_kept":17}
[null,"DATI AGGIUNTIVI",{"$nulls":3}," "]
[null,"Tabella pivot per il grafico Budget",null,null,"Elenco delle categorie"]
[]
[null,"Categories","Costo ",null,"Per aggiungere una categoria, digitare",{"$nulls":3},"'"]
[null,"Animali domestici",{"v":100,"d":"€ 100"},null,"Figli"]
[null,"Regali e beneficenza",{"v":125,"d":"€ 125"},null,"Tempo libero"]
[null,"Igiene personale",{"v":140,"d":"€ 140"},null,"Alimenti"]
[null,"Figli",{"v":140,"d":"€ 140"},null,"Regali e beneficenza"]
[null,"Prestiti",{"v":200,"d":"€ 200"},null,"Alloggio"]
[null,"Risparmi",{"v":200,"d":"€ 200"},null,"Assicurazione"]
[null,"Imposte",{"v":300,"d":"€ 300"},null,"Prestiti"]
[null,"Tempo libero",{"v":358,"d":"€ 358"},null,"Igiene personale"]
[null,"Assicurazione",{"v":900,"d":"€ 900"},null,"Animali domestici"]
[null,"Alimenti",{"v":1320,"d":"€ 1,320"},null,"Risparmi"]
[null,"Trasporti",{"v":1375,"d":"€ 1,375"},null,"Imposte"]
[null,"Alloggio",{"v":2702,"d":"€ 2,702"},null,"Trasporti"]
[null,"Grand Total",{"v":7860,"d":"€ 7,860"}]